Workbook

Sheet FR-P&L
A2: PHYTO CHEM (INDIA) LIMITED
A3: CIN : L24110TG1989PLC009500
A4: Registered Office : Survey No.628, Temple Street, Bonthapally-502313,
A5: Gummadidala Mandal, Sangareddy District, Telangana.
A6: Corporate Office : No.8-3-229/23, First Floor, Thaherville,
A7: Yousufguda Check Post, Hyderabad - 500 045, Telangana.
A8: Tel : 040-23557712 / 23557713, Fax : 040-23557714.
A9: Email: info@phytochemindia.com, Website: www.phytochemindia.com
A11: Statement of Audited Financial Results for the Quarter And Year Ended 31st March 2022
A12: (Rs. in Lakhs Except EPS)
A13: Sl. No. | B13: Particulars | C13: Quarter Ended | F13: For the Year Ended
C14: 31-03-2022 | D14: 31-12-2021 | E14: 31-03-2021 | F14: 31-03-2022 | G14: 31-03-2021
C15: (Audited) | D15: (Unaudited) | E15: (Audited) | F15: (Audited) | G15: (Audited)
A16: 1 | B16: Revenue from operations | C16: 344.38 | D16: 762.82 | E16: 643.67 | F16: 2311.94 | G16: 4448.8
A17: 2 | B17: Other income | C17: 12.98 | D17: 4.58 | E17: 36.54 | F17: 129.3 | G17: 80.47
A18: 3 | B18: Total Revenue (1+ 2) | C18: =SUM(C16:C17) -> 357.36 | D18: =SUM(D16:D17) -> 767.4 | E18: =SUM(E16:E17) -> 680.21 | F18: =SUM(F16:F17) -> 2441.24 | G18: =SUM(G16:G17) -> 4529.27
A19: 4 | B19: Expenses:
B20: Cost of Raw materials consumed | C20: 109.76 | D20: 239.38 | E20: 401.18 | F20: 1358.98 | G20: 3686.54
B21: Purchase of Stock-In-Trade | C21: 0 | D21: 0 | E21: 0 | F21: 0 | G21: 0
B22: Changes in inventories of finished goods work-in-progress and Stock-in-Trade | C22: -36.1 | D22: 276.73 | E22: -32.82 | F22: 162.54 | G22: -153.3973536
B23: Employee benefits expense | C23: 82.7 | D23: 76.57 | E23: 94.12 | F23: 316.72 | G23: 320.92
B24: Finance costs | C24: 59.19 | D24: 55.58 | E24: 56.73 | F24: 209.53 | G24: 211.68
B25: Depreciation and amortization expense | C25: 10.32 | D25: 10.23 | E25: 10.26 | F25: 40.92 | G25: 42.58
B26: Other expenses | C26: 135.53 | D26: 50.96 | E26: 172.21 | F26: 332.83 | G26: 374.3
B27: Total expenses | C27: =SUM(C20:C26) -> 361.4 | D27: =SUM(D20:D26) -> 709.45 | E27: =SUM(E20:E26) -> 701.68 | F27: =SUM(F20:F26) -> 2421.52 | G27: =SUM(G20:G26) -> 4482.622646
A28: 5 | B28: Profit / (Loss) before Tax and exceptional items (3-4) | C28: =C18-C27 -> -4.04 | D28: =D18-D27 -> 57.95 | E28: =E18-E27+0.01 -> -21.46 | F28: =19.73-0.01 -> 19.72 | G28: =G18-G27+0.01 -> 46.6573536
A29: 6 | B29: Exceptional Items | C29: 0 | D29: 0 | E29: 0 | F29: 0 | G29: 0
A30: 7 | B30: Profit / (Loss) before extraordinary items & tax (5-6) | C30: =C28-C29 -> -4.04 | D30: =D28-D29 -> 57.95 | E30: =E28-E29 -> -21.46 | F30: =+F28+F29 -> 19.72 | G30: =G28-G29 -> 46.6573536
A31: 8 | B31: Extraordinary Items | C31: 0 | D31: 0 | E31: 0 | F31: 0 | G31: 0
A32: 9 | B32: Profit before tax (7 -8) | C32: =C30-C31 -> -4.04 | D32: =D30-D31 -> 57.95 | E32: =E30-E31 -> -21.46 | F32: =+F30+F31 -> 19.72 | G32: =G30-G31 -> 46.6573536
A33: 10 | B33: Tax expense:
B34: (a) Current tax | C34: 4.38 | D34: 6.25 | E34: 4.01 | F34: 10.63 | G34: 19
B35: (b) Deferred tax | C35: -13.22 | D35: -0.14 | E35: -6.89 | F35: -13.89 | G35: -21.65
B36: Total Tax Expense (a+b) | C36: =SUM(C34:C35) -> -8.84 | D36: =SUM(D34:D35) -> 6.11 | E36: =SUM(E34:E35) -> -2.88 | F36: =SUM(F34:F35) -> -3.26 | G36: =SUM(G34:G35) -> -2.65
A37: 11 | B37: Net Profit / (Loss) for the period after tax (9 - 10) | C37: =C32-C36+0.01 -> 4.81 | D37: =D32-D36 -> 51.84 | E37: =E32-E36 -> -18.58 | F37: =F32-F36 -> 22.98 | G37: =G32-G36 -> 49.3073536
A38: 12 | B38: TotalComprehensive Income (Net of Tax) | C38: 1.64 | D38: -4.86 | E38: 0.79 | F38: 4 | G38: 4.97
A39: 13 | B39: Total Comprehensive Income (Net of Tax) for the period comprising Profit / Loss for the period (after tax) and other comprehensive Income. | C39: =C37+C38 -> 6.45 | D39: =D37+D38 -> 46.98 | E39: =E37+E38-0.01 -> -17.8 | F39: =+F37+F38 -> 26.98 | G39: =G37+G38-0.01 -> 54.2673536
A40: 14 | B40: Paid up Equity Share Capital (Face value of Rs.10.00 each) | C40: 430.02 | D40: 430.02 | E40: 430.02 | F40: 430.02 | G40: 430.02
A41: 15 | B41: Other Equity excluding revaluation reserves | C41: -- | D41: -- | E41: -- | F41: 615.42 | G41: 588.43
A42: 16 | B42: Earnings per equity share: - In Rs. (Not annualised for Quarter Ended Results)
B43: (1) Basic | C43: =C37/C40*1000/100 -> 0.1118552625 | D43: =D37/D40*1000/100 -> 1.205525324 | E43: =E37/E40*1000/100 -> -0.4320729268 | F43: =F37/F40*1000/100 -> 0.5343937491 | G43: =G37/G40*1000/100 -> 1.14662931
B44: (2) Diluted | C44: =C37/C40*1000/100 -> 0.1118552625 | D44: =D37/D40*1000/100 -> 1.205525324 | E44: =E37/E40*1000/100 -> -0.4320729268 | F44: =F37/F40*1000/100 -> 0.5343937491 | G44: =G37/G40*1000/100 -> 1.14662931
A45: 1 | B45: The Company operates mainly in one segment i.e., Manufacturing and Marketing of Pesticide Formulations and small way in real estate activity. There are no transactions of real estate activity during the quarter ended 31-03-2022. As at 31st March, 2022, the Company has deployed Rs.96.79 Lakhs in Real Estate activity and the rest of amount is deployed in Pesticides activity only.
A46: 2 | B46: The above Audited Financial results have been reviewed by the Audit committee and approved by the Board of Directors at their meeting held on 28th May 2022.
A47: 3 | B47: The Company has decided to exercise the option permitted U/s 115BAA of the Income Tax Act 1961 and Current Tax is worked out accordingly.
A48: 4 | B48: The figures for the Quarter Ended March 31, 2022 and March 31, 2021 are the balancing figures between the Audited figures in respect of the full Financial Year and Unaudited published figures upto the Third Quarter for the respective years.
A49: 5 | B49: The above is an extract of the detailed format of Quarterly Financial Results filed with the Stock Exchange under Regulations 33 of the SEBI (Listing and other Disclosures Requirements) Regulations, 2015. The full format of the Financial Results is available on the Stock Exchange Websites: www.bseindia.com and the same is also available at Company website : www.phytochemindia.com.
A50: 6 | B50: These above Audited financial results have been prepared in accordance with Indian Accounting Standards (Ind AS) as prescribed under Section 133 of Companies Act, 2013 read with Rule 3 of the Companies (Indian Accounting Standards) Rules, 2015 and relevant amendment rules thereafter.
A51: 7 | B51: Previous period figures have been reclassified / regrouped, wherever necessary to make them comparable.
D52: For and on behalf of the Board
D55: Y.Nayudamma
A56: Place : Hyderabad | D56: Managing Director
A57: Date : 28-05-2022 | D57: DIN : 00377721

Sheet FR-BS
C1: Phyto Chem (India) Limited
A2: :: 2 ::
A3: (Rs. In Lakhs)
A4: Particulars | C4: Ind AS | D4: Ind AS
C5: March 31, 2022 | D5: March 31, 2021
A6: Assets:
A7: Non-Current Assets
A8: (a) Property , Plant and Equipment | C8: 313.25 | D8: 343.44
A9: (b) Capital Work In Progress | C9: 0 | D9: 0
A10: (c) Investment Property | C10: 0 | D10: 0
A11: (d) Intangible Asset | C11: 0 | D11: 0
A12: (e) Financial Assets | C12: 0 | D12: 0
A13: (i) Investments | C13: 16.93 | D13: 15.83
A14: ii) Loans | C14: 17.87 | D14: 19.39
A15: (iii) Other Financial Assets | C15: 27.64 | D15: 41.1
A16: (f) Deferred Tax Assets (Net) | C16: 0 | D16: 0
A17: (g) Other Non Current Assets | C17: 0 | D17: 0
C18: =SUM(C8:C17) -> 375.69 | D18: =SUM(D8:D17) -> 419.76
A19: Current Assets
A20: (a) Inventories | C20: 1258.4 | D20: 1612.24
A21: (b) Financial Assets | C21: 0 | D21: 0
A22: (i) Trade Receivables | C22: 2007.5 | D22: 2228.9
A23: (ii) Cash and cash equivalents | C23: 13.77 | D23: 6.16
A24: (iii) Bank Balances Other than Cash and
A25: cash equivalents | C25: 0 | D25: 6.44
A26: (iv) Loans and Advances | C26: 0 | D26: 0
A27: (v) Other Financial Assets | C27: 0 | D27: 0
A28: (c) Current Tax Assets (Net) | C28: 0 | D28: 0
A29: (d) Other Current Assets | C29: 144.5 | D29: 239.42
C30: =SUM(C20:C29) -> 3424.17 | D30: =SUM(D20:D29) -> 4093.16
A31: Total Assets | C31: =C18+C30 -> 3799.86 | D31: =D18+D30 -> 4512.92
A33: Equity & Liabilities:
A34: Equity
A35: (a) Equity Share Capital | C35: 430.02 | D35: 430.02
A36: (b) Other equity | C36: 615.42 | D36: 588.43
C37: =SUM(C35:C36) -> 1045.44 | D37: =SUM(D35:D36) -> 1018.45
A38: Liabilities
A39: Non-Current Liabilities
A40: (a) Financials Liabilities | C40: 0 | D40: 0
A41: (i) Borrowings | C41: 239.45 | D41: 362.59
A42: (ii) Other financial liabilities | C42: 122.69 | D42: 122.19
A43: (b) Provisions | C43: 0 | D43: 0
A44: (c) Deferred tax liabilities - Net | C44: -45.75 | D44: -33.05
C45: =SUM(C40:C44) -> 316.39 | D45: =SUM(D40:D44)+0.01 -> 451.74
A46: Current liabilities
A47: (a) Financial Liabilities | C47: 0 | D47: 0
A48: (i) Borrowings | C48: 1721.92 | D48: 1564.44
A49: (ii) Trade Payables | C49: 0 | D49: 0
A50: (a) Total Outstanding dues to MSME | C50: 0 | D50: 0
A51: (b) Total Outstanding dues other than MSME | C51: 151.16 | D51: 1031.02
A52: (iii) Other financial liabilities | C52: 358.28 | D52: 216
A53: (b) Other Liabilities | C53: 88.13 | D53: 120.89
A54: (c) Provisions | C54: 107.91 | D54: 91.38
A55: (d) Current Tax Liability (Net) | C55: 10.63 | D55: 19
A56: Total Current Liabilities | C56: =SUM(C47:C55) -> 2438.03 | D56: =SUM(D47:D55) -> 3042.73
B57: Total Liabilities | C57: =C56+C45 -> 2754.42 | D57: =D56+D45 -> 3494.47
A58: Total Equity & Liabilities | C58: =C37+C45+C56 -> 3799.86 | D58: =D37+D45+D56 -> 4512.92
C60: For and on behalf of the Board
C63: Y.Nayudamma
A64: Place : Hyderabad | C64: Managing Director
A65: Date : 28-05-2022 | C65: DIN : 00377721

Sheet Cash Flow
A1: Phyto Chem (India) Limited
A2: ::3::
A3: Cash flow statement for the year ended March 31, 2022
A4: (All amounts in Indian Rupees, except otherwise stated)
A5: Particulars | C5: Year ended 31st March 2022 | D5: Year ended 31st March 2021
A6: A. Cash flows from Operating activities
A7: Net Profit Before tax and extra-ordinary items: | C7: 1972700 | D7: 4665000
A8: Add: Non Cash expenditure:
A9: Depreciation expense | C9: 4092200 | D9: 4258400
A10: Less: Non cash incomes | C10: - | D10: -
A11: Less: Income from financing or investing activities:
A12: Dividend income | C12: -19000 | D12: -1533500
A13: Profit on sale of fixed assets (Vehicles) | C13: -20000 | D13: -3413300
A14: Interest Income received | C14: -200000
A15: Add: Expenditures of financing or investing activities:
A16: Interest expenses | C16: 20953100 | D16: 21167800
A17: Operating profit before working capital changes | C17: =SUM(C7:C16) -> 26779000 | D17: =SUM(D7:D16)+0.45 -> 25144400.45
A18: Adjustments for Changes in working capital
A19: Add: Increase in current liabilities | C19: 0 | D19: 0
A20: Add: Decrease in current assets | C20: 67016000 | D20: 208155500
A21: Less: Decrease in current liabilities | C21: -60470800 | D21: -241180800
A22: Less: Increase in current assets | C22: 0 | D22: 0
A23: Cash generated from operating activities | C23: =SUM(C17:C22) -> 33324200 | D23: =SUM(D17:D22) -> -7880899.55
A24: Less: Income tax paid | C24: 326400 | D24: =265456+44 -> 265500
A25: Cash flow before extraordinary items | C25: =SUM(C23:C24) -> 33650600 | D25: =SUM(D23:D24) -> -7615399.55
A26: Add/(Less): Extraordinary items | C26: 0 | D26: 0
A27: Other Comprehensive Income | C27: 400200 | D27: 497400
A28: Net cash flow from operating activities (A) | C28: =SUM(C25:C27) -> 34050800 | D28: =SUM(D25:D27) -> -7117999.55
A29: B. Cash flows from Investing activities
A30: Purchase of fixed assets | C30: -1073300 | D30: =-1869920+20 -> -1869900
A31: Purchase of Investmets | C31: -109500 | D31: 0
A32: Proceeds from sale of fixed assets | C32: 20000 | D32: =9997965+35 -> 9998000
A33: Income received on chit contributions | C33: 0 | D33: 1533500
A34: Dividend Income received | C34: 19000 | D34: 0
A35: Interest Income received | C35: 200000 | D35: 0
A36: Profit on sale of fixed assets | C36: ='[1]PL Notes'!C20 -> 0 | D36: =3413372+28 -> 3413400
A37: Proceeds from sale of securities | C37: 0 | D37: -463100
A38: Repayment of advances or loans from third parties etc. | C38: 1497300 | D38: 0
A39: Increase in gratuity fund | C39: 0 | D39: =-2060706+6 -> -2060700
A40: Net cash flow from Investing activities (B) | C40: =SUM(C30:C39) -> 553500 | D40: =SUM(D30:D39) -> 10551200
A41: C. Cash flows from Financing activities
A42: Proceeds from the issue of share capital | C42: 0 | D42: -
A43: Proceeds from long-term borrowings | C43: 0 | D43: =16068188+12 -> 16068200
A44: Repayment of long term borrowings | C44: 0 | D44: =1122402-2 -> 1122400
A45: Other long term liabilities | C45: -12314300 | D45: 0
A46: Increasing Deffered Tax Liabilities | C46: -1270000 | D46: 0
A47: Security Deposits Received | C47: 50000 | D47: 0
A48: Interest paid | C48: -20953100 | D48: -21167800
A49: Net cash flow from Financing activities (C) | C49: =SUM(C42:C48) -> -34487400 | D49: =SUM(D42:D48) -> -3977200
A50: Net Increase/Decrease in Cash and cash equivalents | C50: =C49+C40+C28 -> 116900 | D50: =D28+D40+D49 -> -543999.55
A51: Add: Opening Cash and cash equivalents | C51: =D52 -> 1260000.45 | D51: =1804050-50 -> 1804000
A52: Closing Cash and cash equivalents | C52: =C51+C50-100 -> 1376800.45 | D52: =D51+D50 -> 1260000.45
B53: For and on behalf of the Board of Directors
C55: ='[1]Ind As BS'!B71 -> Y.Nayudamma
A56: Place : Hyderabad | C56: ='[1]Ind As BS'!B72 -> Managing Director
A57: Date: 28th May 2022 | C57: ='[1]Ind As BS'!B73 -> DIN: 00377721

Sheet EXTRACT
A1: PHYTO CHEM (INDIA) LIMITED
A2: CIN : L24110TG1989PLC009500
A3: Registered Office : Survey No.628, Temple Street, Bonthapally-502313,
A4: Gummadidala Mandal, Sangareddy District, Telangana.
A5: Corporate Office : No.8-3-229/23, First Floor, Thaherville,
A6: Yousufguda Check Post, Hyderabad - 500 045, Telangana.
A7: Tel : 040-23557712 / 23557713, Fax : 040-23557714.
A8: Email: info@phytochemindia.com, Website: www.phytochemindia.com
A10: Extract of Audited Financial Results For The Quarter And Year Ended March 31, 2022
A11: (Rs. in Lakhs Except EPS)
A12: Particulars | C12: Quarter Ended | F12: Year Ended
C13: 31-03-2022 | D13: 31-12-2021 | E13: 31-03-2021 | F13: 31-03-2022 | G13: 31-03-2021
C14: (Audited) | D14: (Unaudited) | E14: (Audited) | F14: (Audited) | G14: (Audited)
A15: 1 | B15: Total Income from operations (net) | C15: ='FR-P&L'!C18 -> 357.36 | D15: ='FR-P&L'!D18 -> 767.4 | E15: ='FR-P&L'!E18 -> 680.21 | F15: ='FR-P&L'!F18 -> 2441.24 | G15: ='FR-P&L'!G18 -> 4529.27
A16: 2 | B16: Net Profit / (Loss) before tax and exceptional items | C16: ='FR-P&L'!C28 -> -4.04 | D16: ='FR-P&L'!D28 -> 57.95 | E16: ='FR-P&L'!E28 -> -21.46 | F16: ='FR-P&L'!F28 -> 19.72 | G16: ='FR-P&L'!G28 -> 46.6573536
A17: 3 | B17: Net Profit / (Loss) before tax and after exceptional items | C17: ='FR-P&L'!C30 -> -4.04 | D17: ='FR-P&L'!D30 -> 57.95 | E17: ='FR-P&L'!E30 -> -21.46 | F17: ='FR-P&L'!F30 -> 19.72 | G17: ='FR-P&L'!G30 -> 46.6573536
A18: 4 | B18: Net Profit / (Loss) after tax and Extraordinary items | C18: ='FR-P&L'!C32 -> -4.04 | D18: ='FR-P&L'!D32 -> 57.95 | E18: ='FR-P&L'!E32 -> -21.46 | F18: ='FR-P&L'!F32 -> 19.72 | G18: ='FR-P&L'!G32 -> 46.6573536
A19: 5 | B19: Total Comprehensive Income (Net of Tax) for the period Comprising Profit / (Loss) for the period (after tax) and Other comprehensive Income. | C19: ='FR-P&L'!C39 -> 6.45 | D19: ='FR-P&L'!D39 -> 46.98 | E19: ='FR-P&L'!E39 -> -17.8 | F19: ='FR-P&L'!F39 -> 26.98 | G19: ='FR-P&L'!G39 -> 54.2673536
A20: 6 | B20: Paid-up equity Share Capital (Face Value Rs.10/- per share) | C20: ='FR-P&L'!C40 -> 430.02 | D20: ='FR-P&L'!D40 -> 430.02 | E20: ='FR-P&L'!E40 -> 430.02 | F20: ='FR-P&L'!F40 -> 430.02 | G20: ='FR-P&L'!G40 -> 430.02
A21: 7 | B21: Other Equity | C21: ='FR-P&L'!C41 -> -- | D21: ='FR-P&L'!D41 -> -- | E21: ='FR-P&L'!E41 -> -- | F21: ='FR-P&L'!F41 -> 615.42 | G21: ='FR-P&L'!G41 -> 588.43
A22: 8 | B22: Earnings per share (of Rs.10/- each) Basic & Diluted Rs. | C22: ='FR-P&L'!C44 -> 0.1118552625 | D22: ='FR-P&L'!D44 -> 1.205525324 | E22: ='FR-P&L'!E44 -> -0.4320729268 | F22: ='FR-P&L'!F44 -> 0.5343937491 | G22: ='FR-P&L'!G44 -> 1.14662931
A23: NOTES :-
A24: 1 | B24: The above Audited financial results have been reviewed by the Audit committee and approved by the Board of Directors at their meeting held on 28th May 2022.
A25: 2 | B25: The Company operates mainly in one segment i.e., Manufacturing and Marketing of Pesticides Formulations and smally way in real estate activity. There are no transactions of real estate activity during the quarter and year ended 31-03-2022. As at 31st March 2022 the Company has deployed Rs.96.79 Lakhs in Real Estate activity and the rest of amount is deployed in Pesticides activity only.
A26: 3 | B26: The Company has decided to exercise the option permitted U/s 115BAA of the Income Tax Act 1961 and Current Tax is worked out accordingly.
A27: 4 | B27: The figures for the Quarter Ended March 31, 2022 and March 31, 2021 are the balancing figures between the Audited figures in respect of the full Financial Year and Unaudited published figures upto the Third Quarter for the respective years.
A28: 5 | B28: These Audited Financial Results have been prepared in accordance with Indian Accounting Standards (Ind AS) as prescribed under Section 133 of Companies Act, 2013 read with Rule 3 of the Companies (Indian Accounting Standards) Rules, 2015 and relevant amendment rules thereafter.
A29: 6 | B29: The above is an extract of the detailed format of Quarterly Financial Results filed with the Stock Exchange under Regulations 33 of the SEBI (Listing and other Disclosures Requirements) Regulations, 2015. The full format of the Financial Results is available on the Stock Exchange Websites: www.bseindia.com and the same is also available at Company website : www.phytochemindia.com.
A30: 7 | B30: Previous period figures have been reclassified / regrouped, wherever necessary to make them comparable.
D31: For and on behalf of the Board
D33: Y.Nayudamma
A34: Place : Hyderabad | D34: Managing Director
A35: Date : 28-05-2022 | D35: DIN : 00377721

Sheet LRR
